fUST/lending_fUST_20240829
["ID","MTS","AMOUNT","RATE_DAILY","PERIOD"]
[336535029,1724917840270,-452.89935131,0.00019178,2]
[336535030,1724917840279,-501.81975172,0.00019178,2]
[336535031,1724917840289,-500.99642906,0.00019178,2]
[336535032,1724917840305,-500.0,0.00019178,2]
[336535033,1724917840315,-532.60122877,0.00019178,2]
[336535034,1724917840325,-500.0,0.00019178,2]
[336535035,1724917840335,-500.0,0.00019178,2]
[336535036,1724917840345,-500.0,0.00019178,2]
[336535037,1724917840355,-502.58624973,0.00019178,2]
[336535038,1724917840365,-501.75258542,0.00019178,2]
[336535040,1724917840375,-501.59789961,0.00019178,2]
[336535042,1724917840385,-500.0,0.00019178,2]
[336535043,1724917840394,-501.10632958,0.00019178,2]
[336535044,1724917840404,-500.0,0.00019178,2]
[336535045,1724917840413,-502.5649571,0.00019178,2]
[336535046,1724917840422,-500.99576909,0.00019178,2]
[336535047,1724917840432,-500.0,0.00019178,2]
[336535048,1724917840443,-501.00721687,0.00019178,2]
[336535049,1724917840452,-501.02960701,0.00019178,2]
[336535050,1724917840461,-500.90263951,0.00019178,2]
[336535051,1724917840471,-501.8737075,0.00019178,2]
[336535052,1724917840481,-500.0,0.00019178,2]
[336535053,1724917840490,-503.10976279,0.00019178,2]
[336535054,1724917840499,-502.9912183,0.00019178,2]
[336535055,1724917840510,-500.0,0.00019178,2]
[336535056,1724917840522,-504.0051687,0.00019178,2]
[336535057,1724917840533,-500.0,0.00019178,2]
[336535058,1724917840543,-502.82108857,0.00019178,2]
[336535059,1724917840553,-500.0,0.00019178,2]
[336535060,1724917840563,-500.0,0.00019178,2]
[336535061,1724917840573,-500.0,0.00019178,2]
[336535062,1724917840585,-500.0,0.00019178,2]
[336535063,1724917840596,-500.0,0.00019178,2]
[336535064,1724917840606,-500.0,0.00019178,2]
[336535065,1724917840615,-500.94084615,0.00019178,2]
[336535066,1724917840625,-500.0,0.00019178,2]
[336535067,1724917840635,-516.05716378,0.00019178,2]
[336535068,1724917840645,-500.0,0.00019178,2]
[336535069,1724917840655,-501.9128039,0.00019178,2]
[336535070,1724917840666,-500.0,0.00019178,2]
[336535071,1724917840678,-500.0,0.00019178,2]
[336535072,1724917840690,-500.0,0.00019178,2]
[336535073,1724917840701,-502.77513306,0.00019178,2]
[336535074,1724917840712,-500.96067058,0.00019178,2]
[336535075,1724917840722,-500.0,0.00019178,2]
[336535076,1724917840732,-196.03494753,0.00019178,2]
[336535077,1724917840742,-508.163697,0.00019178,2]
[336535078,1724917840752,-503.29986736,0.00019178,2]
[336535079,1724917840763,-500.0,0.00019178,2]
[336535080,1724917840774,-500.0,0.00019178,2]
[336535081,1724917840784,-500.0,0.00019178,2]
[336535082,1724917840795,-500.0,0.00019178,2]
[336535083,1724917840805,-500.0,0.00019178,2]
[336535084,1724917840815,-500.97414096,0.00019178,2]
[336535085,1724917840824,-501.31403188,0.00019178,2]
[336535086,1724917840834,-501.80485962,0.00019178,2]
[336535087,1724917840844,-500.0,0.00019178,2]
[336535088,1724917840854,-502.26955562,0.00019178,2]
[336535089,1724917840865,-500.0,0.00019178,2]
[336535090,1724917840874,-500.0,0.00019178,2]
[336535091,1724917840884,-500.0,0.00019178,2]
[336535092,1724917840894,-500.0,0.00019178,2]
[336535093,1724917840904,-500.0,0.00019178,2]
[336535094,1724917840913,-500.0,0.00019178,2]
[336535095,1724917840923,-452.73192068,0.00019178,2]
[336535096,1724917840933,-500.0,0.00019178,2]
[336535097,1724917840942,-500.0,0.00019178,2]
[336535098,1724917840952,-500.0,0.00019178,2]
[336535099,1724917840962,-500.0,0.00019178,2]
[336535100,1724917840972,-656.66,0.00019178,2]
[336535101,1724917840982,-500.0,0.00019178,2]
[336535102,1724917840991,-500.0,0.00019178,2]
[336535103,1724917841001,-500.0,0.00019178,2]
[336535104,1724917841011,-500.0,0.00019178,2]
[336535105,1724917841020,-500.0,0.00019178,2]
[336535106,1724917841030,-500.0,0.00019178,2]
[336535107,1724917841039,-500.0,0.00019178,2]
[336535108,1724917841052,-500.0,0.00019178,2]
[336535109,1724917841062,-500.0,0.00019178,2]
[336535110,1724917841071,-500.0,0.00019178,2]
[336535111,1724917841081,-501.27268747,0.00019178,2]
[336535112,1724917841091,-549.01127546,0.00019178,2]
[336535113,1724917841101,-500.64230925,0.00019178,2]
[336535114,1724917841111,-500.0,0.00019178,2]
[336535115,1724917841120,-501.96496158,0.00019178,2]
[336535116,1724917841130,-501.79663573,0.00019178,2]
[336535117,1724917841140,-500.0,0.00019178,2]
[336535118,1724917841150,-500.0,0.00019178,2]
[336535119,1724917841159,-500.0,0.00019178,2]
[336535120,1724917841170,-500.0,0.00019178,2]
[336535121,1724917841180,-500.0,0.00019178,2]
[336535122,1724917841191,-584.6703468,0.00019178,2]
[336535123,1724917841201,-500.0,0.00019178,2]
[336535124,1724917841210,-547.38,0.00019178,2]
[336535125,1724917841220,-500.0,0.00019178,2]
[336535126,1724917841229,-500.0,0.00019178,2]
[336535127,1724917841238,-502.7510619,0.00019178,2]
[336535128,1724917841248,-501.68745241,0.00019178,2]
[336535129,1724917841259,-500.0,0.00019178,2]
[336535130,1724917841269,-501.18683327,0.00019178,2]
[336535131,1724917841280,-543.53818653,0.00019178,2]
[336535132,1724917841289,-500.0,0.00019178,2]
[336535133,1724917841301,-500.0,0.00019178,2]
[336535134,1724917841311,-500.0,0.00019178,2]
[336535135,1724917841320,-500.0,0.00019178,2]
[336535136,1724917841330,-500.0,0.00019178,2]
[336535137,1724917841339,-500.0,0.00019178,2]
[336535138,1724917841349,-500.0,0.00019178,2]
[336535139,1724917841359,-502.36058374,0.00019178,2]
[336535140,1724917841368,-500.0,0.00019178,2]
[336535141,1724917841377,-500.0,0.00019178,2]
[336535142,1724917841388,-500.0,0.00019178,2]
[336535143,1724917841398,-501.22274735,0.00019178,2]
[336535144,1724917841409,-503.42793797,0.00019178,2]
[336535145,1724917841419,-502.39452672,0.00019178,2]
[336535146,1724917841429,-500.0,0.00019178,2]
[336535147,1724917841439,-500.0,0.00019178,2]
[336535148,1724917841449,-500.0,0.00019178,2]
[336535149,1724917841458,-500.0,0.00019178,2]
[336535150,1724917841468,-500.0,0.00019178,2]
[336535151,1724917841478,-500.0,0.00019178,2]
[336535152,1724917841488,-506.47909114,0.00019178,2]
[336535153,1724917841499,-500.0,0.00019178,2]
[336535154,1724917841509,-500.0,0.00019178,2]
[336535155,1724917841520,-501.34338046,0.00019178,2]
[336535156,1724917841530,-186.04376084,0.00019178,2]
[336535157,1724917841541,-500.0,0.00019178,2]
[336535158,1724917841553,-500.0,0.00019178,2]
[336535159,1724917841562,-500.0,0.00019178,2]
[336535160,1724917841571,-500.28903862,0.00019178,2]
[336535161,1724917841582,-457.34063643,0.00019178,2]
[336535162,1724917841595,-589.15,0.00019178,2]
[336535163,1724917841605,-500.0,0.00019178,2]
[336535164,1724917841614,-500.0,0.00019178,2]
[336535165,1724917841623,-500.0,0.00019178,2]
[336535166,1724917841635,-500.0,0.00019178,2]
[336535167,1724917841647,-500.0,0.00019178,2]
[336535168,1724917841658,-500.0,0.00019178,2]
[336535169,1724917841668,-1362.0,0.00019178,2]
[336535170,1724917841678,-500.0,0.00019178,2]
[336535171,1724917841688,-503.56764558,0.00019178,2]
[336535172,1724917841697,-500.0,0.00019178,2]
[336535173,1724917841706,-501.18159797,0.00019178,2]
[336535174,1724917841717,-500.0,0.00019178,2]
[336535175,1724917841728,-500.0,0.00019178,2]
[336535176,1724917841738,-500.0,0.00019178,2]
[336535177,1724917841749,-500.0,0.00019178,2]
[336535178,1724917841760,-501.38965635,0.00019178,2]
[336535179,1724917841770,-151.0,0.00019178,2]
[336535180,1724917841780,-151.0,0.00019178,2]
[336535181,1724917841789,-151.0,0.00019178,2]
[336535182,1724917841800,-500.0,0.00019178,2]
[336535183,1724917841810,-151.0,0.00019178,2]
[336535184,1724917841818,-151.0,0.00019178,2]
[336535185,1724917841828,-151.0,0.00019178,2]
[336535186,1724917841837,-151.0,0.00019178,2]
[336535187,1724917841847,-151.0,0.00019178,2]
[336535188,1724917841856,-151.0,0.00019178,2]
[336535189,1724917841865,-151.0,0.00019178,2]
[336535190,1724917841875,-500.0,0.00019178,2]
[336535191,1724917841886,-500.0,0.00019178,2]
[336535192,1724917841896,-151.0,0.00019178,2]
[336535193,1724917841905,-151.0,0.00019178,2]
[336535194,1724917841915,-269.588823,0.00019178,2]
[336535195,1724917841925,-501.00479416,0.00019178,2]
[336535196,1724917841934,-501.61245273,0.00019178,2]
[336535197,1724917841944,-500.0,0.00019178,2]
[336535198,1724917841955,-500.0,0.00019178,2]
[336535199,1724917841964,-151.0,0.00019178,2]
[336535200,1724917841974,-151.0,0.00019178,2]
[336535201,1724917841984,-500.0,0.00019178,2]
[336535202,1724917841993,-151.0,0.00019178,2]
[336535203,1724917842003,-178.809942,0.00019178,2]
[336535204,1724917842012,-501.69803155,0.00019178,2]
[336535205,1724917842022,-500.0,0.00019178,2]
[336535206,1724917842033,-500.0,0.00019178,2]
[336535207,1724917842044,-500.61524814,0.00019178,2]
[336535208,1724917842061,-501.58021133,0.00019178,2]
[336535209,1724917842071,-502.29438989,0.00019178,2]
[336535210,1724917842080,-500.78778432,0.00019178,2]
[336535211,1724917842090,-497.5,0.00019178,2]
[336535212,1724917842100,-500.0,0.00019178,2]
[336535213,1724917842110,-500.0,0.00019178,2]
[336535214,1724917842120,-500.0,0.00019178,2]
[336535215,1724917842130,-500.0,0.00019178,2]
[336535216,1724917842140,-500.0,0.00019178,2]
[336535217,1724917842150,-500.0,0.00019178,2]
[336535218,1724917842160,-500.0,0.00019178,2]
[336535219,1724917842169,-500.0,0.00019178,2]
[336535220,1724917842179,-500.0,0.00019178,2]
[336535221,1724917842189,-500.0,0.00019178,2]
[336535222,1724917842199,-500.0,0.00019178,2]
[336535223,1724917842210,-500.0,0.00019178,2]
[336535224,1724917842219,-7165.72,0.00019178,2]
[336535225,1724917842229,-500.0,0.00019178,2]
[336535226,1724917842240,-500.0,0.00019178,2]
[336535227,1724917842251,-553.941254,0.00019178,2]
[336535228,1724917842262,-500.0,0.00019178,2]
[336535229,1724917842274,-684.38,0.00019178,2]
[336535230,1724917842284,-365.19005877,0.00019178,2]
[336535285,1724917843292,-135.43699308,0.00019178,2]
[336535287,1724917843302,-500.0,0.00019178,2]
[336535289,1724917843311,-500.0,0.00019178,2]
[336535290,1724917843321,-501.51919353,0.00019178,2]
[336535292,1724917843330,-500.0,0.00019178,2]
[336535293,1724917843340,-498.06877309,0.00019178,2]
[336535294,1724917843349,-307.2655812,0.00019178,2]
[336535296,1724917843358,-500.0,0.00019178,2]
[336535298,1724917843368,-500.0,0.00019178,2]
[336535300,1724917843376,-500.22943136,0.00019178,2]
[336535301,1724917843386,-506.62964847,0.00019178,2]
[336535303,1724917843396,-502.34367474,0.00019178,2]
[336535306,1724917843405,-500.0,0.00019178,2]
[336535308,1724917843415,-501.4640467,0.00019178,2]
[336535310,1724917843424,-500.0,0.00019178,2]
[336535311,1724917843434,-500.0,0.00019178,2]
[336535312,1724917843443,-505.69661617,0.00019178,2]
[336535314,1724917843452,-500.0,0.00019178,2]
[336535315,1724917843461,-663.12,0.00019178,2]
[336535317,1724917843470,-500.86963773,0.00019178,2]
[336535319,1724917843480,-150.1486285,0.00019178,2]
[336535321,1724917843489,-503.7350934,0.00019178,2]
[336535322,1724917843498,-501.5882232,0.00019178,2]
[336535323,1724917843507,-500.0,0.00019178,2]
[336535324,1724917843516,-500.33277608,0.00019178,2]
[336535325,1724917843525,-500.0,0.00019178,2]
[336535326,1724917843534,-500.0,0.00019178,2]
[336535327,1724917843543,-501.93581551,0.00019178,2]
[336535328,1724917843552,-500.0,0.00019178,2]
[336535329,1724917843562,-501.66992493,0.00019178,2]
[336535330,1724917843571,-511.76235761,0.00019178,2]
[336535331,1724917843580,-500.0,0.00019178,2]
[336535332,1724917843593,-456.1835847,0.00019178,2]
[336535345,1724917846150,-43.8164153,0.00019178,2]
[336535346,1724917846160,-225.39250391,0.00019178,2]
[336535348,1724917846171,-20.63108079,0.00019178,2]
[336535406,1724918839158,-215.90382209,0.00014247,2]
[336535408,1724918840142,-170.09141791,0.00014247,2]
[336535409,1724918840164,-100.15779526,0.00017865,2]
[336535469,1724919032256,-300.0,0.00017865,2]
[336535470,1724919032267,-3843.49016716,0.00017866,2]
[336535471,1724919032279,-15083.18019144,0.00017866,2]
[336535472,1724919032291,-258.18004786,0.00017866,2]
[336535473,1724919032302,-2347.45320977,0.00017866,2]
[336535474,1724919032314,-3367.69638377,0.00017866,2]
[336535475,1724919032325,-304.364901,0.00018904,2]
[336535476,1724919032335,-1207.85078139,0.00018978,2]
[336535477,1724919032344,-1000.0,0.00019,19]
[336535478,1724919032353,-1000.0,0.00019,10]
[336535479,1724919032363,-891.63717306,0.00019078,2]
[336535481,1724919032374,-891.63717303,0.00019147,2]
[336535483,1724919032383,-874.3,0.00019168,3]
[336535485,1724919032394,-2992.06325801,0.00019168,2]
[336535490,1724919033516,172.269277,0.00014247,2]
[336535500,1724919038406,-2786.85667174,0.00019168,2]
[336535501,1724919038526,-254.91579817,0.00019168,2]
[336535518,1724919040413,-916.14411214,0.00019168,2]
[336535519,1724919040425,-4334.36575158,0.00019168,2]
[336535526,1724919043405,-3736.00370846,0.00019168,2]
[336535527,1724919043417,-500.0,0.00019178,2]
[336535528,1724919043428,-506.42417714,0.00019178,2]
[336535529,1724919043437,-4169.25,0.00019178,2]
[336535530,1724919043447,-500.0,0.00019178,2]
[336535531,1724919043456,-366.74489099,0.00019178,2]
[336535532,1724919043466,-500.0,0.00019178,2]
[336535533,1724919043476,-500.0,0.00019178,2]
[336535534,1724919043486,-357.33814205,0.00019178,2]
[336535538,1724919046294,-142.66185795,0.00019178,2]
[336535539,1724919046303,-131.33814205,0.00019178,2]
[336535672,1724920031154,-366.695478,0.00014247,2]
[336535673,1724920031179,-300.0,0.00017893,2]
[336535674,1724920031203,-418.73716342,0.00017894,2]
[336535686,1724920151121,-300.0,0.00013999,2]
[336535687,1724920151144,-7491.57386619,0.00014,2]
[336535688,1724920157102,-5412.6940693,0.00014,2]
[336535689,1724920157126,-172.269277,0.00014247,2]
[336535690,1724920157148,-420.0,0.00015399,2]
[336535729,1724920232450,-5411.33619476,0.00017894,2]
[336535734,1724920232505,-3570.12439564,0.00017894,2]
[336535749,1724920238616,-1419.6163291,0.00017894,2]
[336535773,1724920243695,-393.81233224,0.00017894,2]
[336535816,1724920503152,697.85085624,0.000201,60]
[336535857,1724921244140,-369.745482,0.00014247,2]
[336535858,1724921244162,-172.269277,0.00014247,2]
[336535859,1724921244183,-500.0,0.000156,2]
[336535860,1724921244206,-500.0,0.000156,2]
[336535861,1724921244230,-500.0,0.000156,2]
[336535862,1724921244251,-500.0,0.00015676,2]
[336535863,1724921244272,-500.0,0.00016501,2]
[336535864,1724921244294,-300.0,0.00016867,2]
[336535865,1724921244316,-3790.61675985,0.00016868,2]
[336535866,1724921245158,-866.13360667,0.00016868,2]
[336535867,1724921253111,-562.13844143,0.00016868,2]
[336535869,1724921373104,-300.0,0.00016867,2]
[336535870,1724921373127,-15384.88536641,0.00016868,2]
[336535871,1724921373157,-761.63581474,0.00016868,2]
[336535872,1724921373179,-1386.93911654,0.00017,2]
[336535964,1724921438926,-159.488974,0.0001731,2]
[336535965,1724921438938,-500.0,0.0001737,2]
[336535966,1724921438950,-133.0256392,0.00017439,2]
[336535969,1724921440712,-26.4633348,0.00017439,2]
[336535970,1724921440722,-159.488974,0.00017568,2]
[336535971,1724921440733,-159.488974,0.00017697,2]
[336535972,1724921440744,-159.488974,0.00017826,2]
[336535973,1724921440755,-159.488974,0.00017954,2]
[336535974,1724921440767,-159.488974,0.00018083,2]
[336535975,1724921440778,-159.488974,0.00018212,2]
[336535976,1724921440789,-500.0,0.00018284,2]
[336535977,1724921440799,-289.146655,0.00018904,2]
[336535978,1724921440810,-1000.0,0.00018933,2]
[336535979,1724921440819,-1000.0,0.00019,19]
[336535980,1724921440836,-615.73706796,0.00019078,2]
[336535981,1724921440847,-1000.0,0.000191,4]
[336535982,1724921440859,-615.73706794,0.00019147,2]
[336535983,1724921440869,-300.0,0.00019167,2]
[336535984,1724921440879,-418.22331881,0.00019168,5]
[336535985,1724921440889,-953.682928,0.00019168,2]
[336535986,1724921440902,-4770.01570441,0.00019168,2]
[336535991,1724921446700,-1327.76017751,0.00019168,2]
[336535992,1724921446774,-373.6,0.00019168,2]
[336536056,1724922428155,-500.0,0.00013537,2]
[336536057,1724922428179,-371.573746,0.00014247,2]
[336536058,1724922428202,-500.0,0.0001425,2]
[336536059,1724922428225,-500.0,0.00015,2]
[336536060,1724922428246,-500.0,0.00015749,2]
[336536061,1724922428269,-181.78360486,0.00016537,2]
[336536062,1724922428293,-250.0,0.00017116,2]
[336536063,1724922428316,-274.689322,0.00018904,2]
[336536064,1724922428339,-1000.0,0.00019017,2]
[336536065,1724922428360,-369.44224078,0.00019078,2]
[336536066,1724922428380,-304.89237335,0.00019117,2]
[336536067,1724922428402,-300.0,0.00019135,2]
[336536068,1724922428426,-369.44224076,0.00019147,2]
[336536069,1724922428452,-300.0,0.00019167,2]
[336536070,1724922428475,-300.0,0.00019167,2]
[336536071,1724922428497,-7539.94539477,0.00019168,2]
[336536072,1724922439110,-275.07533031,0.00019168,2]
[336536136,1724922638019,-3252.39565255,0.00018653,2]
[336536137,1724922638030,-1281.90452734,0.00019176,2]
[336536138,1724922638042,-300.0,0.00019177,2]
[336536139,1724922638053,-209.1116594,0.00019178,5]
[336536140,1724922638062,-500.0,0.00019178,2]
[336536141,1724922638072,-1127.70190863,0.00019178,2]
[336536142,1724922638082,-543.66387789,0.00019178,2]
[336536143,1724922638092,-500.0,0.00019178,2]
[336536144,1724922638102,-187.84983643,0.00019178,2]
[336536145,1724922638111,-500.0,0.00019178,2]
[336536146,1724922638121,-531.04378084,0.00019178,2]
[336536147,1724922638131,-500.0,0.00019178,2]
[336536148,1724922638141,-500.0,0.00019178,2]
[336536149,1724922638151,-500.0,0.00019178,2]
[336536150,1724922638161,-500.72313419,0.00019178,2]
[336536151,1724922638172,-500.0,0.00019178,2]
[336536152,1724922638183,-160.94904698,0.00019178,2]
[336536153,1724922638199,-368.66185795,0.00019178,2]
[336536154,1724922638209,-500.83232328,0.00019178,2]
[336536155,1724922638220,-500.0,0.00019178,2]
[336536156,1724922638231,-598.6430879,0.00019178,2]
[336536157,1724922638241,-500.79361022,0.00019178,2]
[336536158,1724922638251,-245.740347,0.00019178,2]
[336536159,1724922638262,-245.740347,0.00019178,2]
[336536160,1724922638275,-245.740347,0.00019178,2]
[336536161,1724922638286,-245.740347,0.00019178,2]
[336536162,1724922638297,-245.740347,0.00019178,2]
[336536163,1724922638308,-245.740347,0.00019178,2]
[336536164,1724922638318,-502.90048025,0.00019178,2]
[336536165,1724922638328,-245.740347,0.00019178,2]
[336536166,1724922638341,-245.740347,0.00019178,2]
[336536167,1724922638352,-245.740347,0.00019178,2]
[336536168,1724922638363,-245.740347,0.00019178,2]
[336536169,1724922638373,-245.740347,0.00019178,2]
[336536170,1724922638384,-245.740347,0.00019178,2]
[336536171,1724922638394,-245.740347,0.00019178,2]
[336536172,1724922638404,-245.740347,0.00019178,2]
[336536173,1724922638414,-245.740347,0.00019178,2]
[336536174,1724922638423,-245.740347,0.00019178,2]
[336536175,1724922638433,-245.740347,0.00019178,2]
[336536176,1724922638442,-245.740347,0.00019178,2]
[336536177,1724922638452,-245.740347,0.00019178,2]
[336536178,1724922638462,-245.740338,0.00019178,2]
[336536179,1724922638471,-500.62649791,0.00019178,2]
[336536180,1724922638481,-501.25432436,0.00019178,2]
[336536181,1724922638646,-500.0,0.00019178,2]
[336536182,1724922638656,-187.19773457,0.00019178,2]
[336536183,1724922638666,-501.5945906,0.00019178,2]
[336536184,1724922638675,-568.04406654,0.00019178,2]
[336536185,1724922638685,-500.0,0.00019178,2]
[336536186,1724922638695,-500.0,0.00019178,2]
[336536187,1724922638704,-500.0,0.00019178,2]
[336536188,1724922638713,-500.0,0.00019178,2]
[336536189,1724922638722,-500.0,0.00019178,2]
[336536190,1724922638732,-500.0,0.00019178,2]
[336536191,1724922638741,-501.45554826,0.00019178,2]
[336536192,1724922638751,-500.0,0.00019178,2]
[336536193,1724922638761,-500.0,0.00019178,2]
[336536194,1724922638771,-500.0,0.00019178,2]
[336536195,1724922638781,-500.0,0.00019178,2]
[336536196,1724922638791,-500.0,0.00019178,2]
[336536197,1724922638801,-501.00225855,0.00019178,2]
[336536198,1724922638812,-500.0,0.00019178,2]
[336536199,1724922638822,-496.44085048,0.00019178,2]
[336536200,1724922638831,-500.0,0.00019178,2]
[336536201,1724922638840,-500.0,0.00019178,2]
[336536202,1724922638850,-500.0,0.00019178,2]
[336536203,1724922638859,-500.0,0.00019178,2]
[336536204,1724922638869,-256.35680208,0.00019178,2]
[336536205,1724922638878,-502.18738383,0.00019178,2]
[336536206,1724922638887,-508.427084,0.00019178,2]
[336536207,1724922638897,-500.0,0.00019178,2]
[336536208,1724922638907,-500.0,0.00019178,2]
[336536209,1724922638916,-487.07510201,0.00019178,2]
[336536210,1724922638927,-500.0,0.00019178,2]
[336536211,1724922638937,-500.0,0.00019178,2]
[336536212,1724922638948,-500.0,0.00019178,2]
[336536213,1724922638957,-500.0,0.00019178,2]
[336536214,1724922638967,-500.0,0.00019178,2]
[336536215,1724922638978,-500.0,0.00019178,2]
[336536216,1724922638987,-161.39358082,0.00019178,2]
[336536217,1724922638998,-502.10148268,0.00019178,2]
[336536218,1724922639009,-500.0,0.00019178,2]
[336536219,1724922639020,-500.0,0.00019178,2]
[336536220,1724922639030,-500.0,0.00019178,2]
[336536221,1724922639040,-500.0,0.00019178,2]
[336536222,1724922639049,-557.81245068,0.00019178,2]
[336536223,1724922639059,-500.0,0.00019178,2]
[336536224,1724922639068,-500.0,0.00019178,2]
[336536225,1724922639078,-500.0,0.00019178,2]
[336536226,1724922639087,-500.0,0.00019178,2]
[336536227,1724922639096,-500.0,0.00019178,2]
[336536228,1724922639106,-500.0,0.00019178,2]
[336536229,1724922639115,-504.08713484,0.00019178,2]
[336536230,1724922639125,-502.05434387,0.00019178,2]
[336536231,1724922639135,-500.0,0.00019178,2]
[336536232,1724922639144,-513.99536721,0.00019178,2]
[336536233,1724922639154,-500.0,0.00019178,2]
[336536234,1724922639164,-501.54448539,0.00019178,2]
[336536235,1724922639176,-500.0,0.00019178,2]
[336536236,1724922639187,-500.79057838,0.00019178,2]
[336536237,1724922639200,-500.0,0.00019178,2]
[336536238,1724922639209,-500.94050722,0.00019178,2]
[336536239,1724922639221,-500.0,0.00019178,2]
[336536240,1724922639232,-337.64416876,0.00019178,2]
[336536241,1724922639244,-500.0,0.00019178,2]
[336536242,1724922639255,-500.0,0.00019178,2]
[336536243,1724922639265,-500.0,0.00019178,2]
[336536244,1724922639277,-500.0,0.00019178,2]
[336536245,1724922639287,-500.0,0.00019178,2]
[336536246,1724922639297,-500.0,0.00019178,2]
[336536247,1724922639307,-500.0,0.00019178,2]
[336536248,1724922639318,-502.7847201,0.00019178,2]
[336536249,1724922639328,-500.0,0.00019178,2]
[336536250,1724922639340,-500.0,0.00019178,2]
[336536251,1724922639351,-501.88878411,0.00019178,2]
[336536252,1724922639363,-502.32048746,0.00019178,2]
[336536253,1724922639373,-500.0,0.00019178,2]
[336536255,1724922639384,-502.44220485,0.00019178,2]
[336536257,1724922639395,-500.28300636,0.00019178,2]
[336536258,1724922639404,-500.0,0.00019178,2]
[336536259,1724922639414,-457.29683445,0.00019178,2]
[336536260,1724922639425,-500.0,0.00019178,2]
[336536261,1724922639434,-500.0,0.00019178,2]
[336536262,1724922639444,-501.30504697,0.00019178,2]
[336536263,1724922639453,-500.0,0.00019178,2]
[336536264,1724922639463,-500.0,0.00019178,2]
[336536266,1724922639472,-500.0,0.00019178,2]
[336536268,1724922639482,-500.0,0.00019178,2]
[336536269,1724922639492,-500.0,0.00019178,2]
[336536270,1724922639502,-500.57133926,0.00019178,2]
[336536271,1724922639511,-502.46252277,0.00019178,2]
[336536273,1724922639520,-500.0,0.00019178,2]
[336536275,1724922639530,-500.0,0.00019178,2]
[336536277,1724922639539,-500.0,0.00019178,2]
[336536279,1724922639549,-502.24266996,0.00019178,2]
[336536282,1724922639558,-500.15366404,0.00019178,2]
[336536284,1724922639567,-500.9626219,0.00019178,2]
[336536287,1724922639577,-500.30232048,0.00019178,2]
[336536289,1724922639586,-554.49556569,0.00019178,2]
[336536291,1724922639595,-500.0,0.00019178,2]
[336536293,1724922639605,-500.0,0.00019178,2]
[336536294,1724922639614,-500.0,0.00019178,2]
[336536295,1724922639623,-500.0,0.00019178,2]
[336536297,1724922639632,-406.78677295,0.00019178,2]
[336536299,1724922639642,-500.0,0.00019178,2]
[336536301,1724922639651,-500.0,0.00019178,2]
[336536303,1724922639662,-500.43879414,0.00019178,2]
[336536304,1724922639671,-501.97389653,0.00019178,2]
[336536305,1724922639681,-500.0,0.00019178,2]
[336536306,1724922639694,-507.54361738,0.00019178,2]
[336536307,1724922639705,-500.81808928,0.00019178,2]
[336536308,1724922639716,-500.0,0.00019178,2]
[336536309,1724922639725,-500.0,0.00019178,2]
[336536310,1724922639737,-500.0,0.00019178,2]
[336536311,1724922639748,-500.0,0.00019178,2]
[336536312,1724922639757,-512.82351562,0.00019178,2]
[336536313,1724922639766,-500.0,0.00019178,2]
[336536314,1724922639775,-500.3550286,0.00019178,2]
[336536315,1724922639785,-500.0,0.00019178,2]
[336536316,1724922639795,-501.87515168,0.00019178,2]
[336536317,1724922639806,-500.0,0.00019178,2]
[336536318,1724922639817,-500.0,0.00019178,2]